fUST/lending_fUST_20240826
["ID","MTS","AMOUNT","RATE_DAILY","PERIOD"]
[335968298,1724646641496,-500.0,0.00012043,2]
[335968300,1724646641505,-500.0,0.00012043,2]
[335968302,1724646641515,-500.0,0.00012043,2]
[335968304,1724646641525,-500.0,0.00012043,2]
[335968306,1724646641535,-500.0,0.00012043,2]
[335968308,1724646641545,-500.0,0.00012043,2]
[335968311,1724646641556,-500.0,0.00012043,2]
[335968313,1724646641566,-500.0,0.00012043,2]
[335968315,1724646641577,-532.66,0.00012043,2]
[335968316,1724646641596,-500.0,0.00012043,2]
[335968318,1724646641605,-500.0,0.00012043,2]
[335968320,1724646641614,-500.0,0.00012043,2]
[335968322,1724646641623,-500.0,0.00012043,2]
[335968324,1724646641632,-500.0,0.00012043,2]
[335968326,1724646641641,-500.0,0.00012043,2]
[335968328,1724646641654,-500.0,0.00012043,2]
[335968330,1724646641663,-500.0,0.00012043,2]
[335968332,1724646641672,-524.51,0.00012043,2]
[335968334,1724646641682,-500.0,0.00012043,2]
[335968336,1724646641692,-500.0,0.00012043,2]
[335968337,1724646641701,-500.0,0.00012043,2]
[335968338,1724646641711,-708.48,0.00012043,2]
[335968339,1724646641720,-502.31320303,0.00012043,2]
[335968340,1724646641731,-500.0,0.00012043,2]
[335968341,1724646641742,-500.0,0.00012043,2]
[335968342,1724646641751,-500.0,0.00012043,2]
[335968343,1724646641760,-500.0,0.00012043,2]
[335968344,1724646641772,-628.31,0.00012043,2]
[335968345,1724646641782,-500.0,0.00012043,2]
[335968346,1724646641791,-503.26724347,0.00012043,2]
[335968347,1724646641801,-9273.69,0.00012043,2]
[335968349,1724646641810,-500.0,0.00012043,2]
[335968351,1724646641819,-500.0,0.00012043,2]
[335968353,1724646641828,-502.05815287,0.00012043,2]
[335968355,1724646641840,-500.0,0.00012043,2]
[335968357,1724646641849,-500.0,0.00012043,2]
[335968359,1724646641858,-993.0,0.00012043,2]
[335968361,1724646641869,-500.0,0.00012043,2]
[335968363,1724646641879,-659.96,0.00012043,2]
[335968365,1724646641888,-500.0,0.00012043,2]
[335968367,1724646641898,-500.0,0.00012043,2]
[335968369,1724646641907,-500.0,0.00012043,2]
[335968371,1724646641917,-500.0,0.00012043,2]
[335968373,1724646641927,-500.0,0.00012043,2]
[335968375,1724646641936,-230.8585674,0.00012043,2]
[335968377,1724646641946,-500.0,0.00012043,2]
[335968380,1724646641956,-633.96,0.00012043,2]
[335968382,1724646641965,-500.0,0.00012043,2]
[335968384,1724646641975,-500.0,0.00012043,2]
[335968386,1724646641984,-500.0,0.00012043,2]
[335968388,1724646641994,-500.0,0.00012043,2]
[335968390,1724646642004,-500.0,0.00012043,2]
[335968392,1724646642013,-809.43,0.00012043,2]
[335968394,1724646642023,-600.68,0.00012043,2]
[335968396,1724646642033,-500.0,0.00012043,2]
[335968398,1724646642042,-500.0,0.00012043,2]
[335968400,1724646642052,-500.0,0.00012043,2]
[335968402,1724646642061,-500.0,0.00012043,2]
[335968404,1724646642070,-500.0,0.00012043,2]
[335968406,1724646642089,-500.0,0.00012043,2]
[335968408,1724646642099,-500.0,0.00012043,2]
[335968410,1724646642108,-500.0,0.00012043,2]
[335968412,1724646642118,-500.0,0.00012043,2]
[335968414,1724646642129,-500.0,0.00012043,2]
[335968416,1724646642139,-575.14,0.00012043,2]
[335968418,1724646642150,-503.71410313,0.00012043,2]
[335968420,1724646642159,-501.24786897,0.00012043,2]
[335968422,1724646642168,-500.0,0.00012043,2]
[335968424,1724646642178,-500.0,0.00012043,2]
[335968426,1724646642187,-513.18,0.00012043,2]
[335968428,1724646642197,-500.0,0.00012043,2]
[335968430,1724646642206,-500.0,0.00012043,2]
[335968432,1724646642215,-545.51459698,0.00012043,2]
[335968434,1724646642224,-695.79,0.00012043,2]
[335968436,1724646642234,-500.0,0.00012043,2]
[335968438,1724646642244,-500.0,0.00012043,2]
[335968440,1724646642253,-566.66976765,0.00012043,2]
[335968442,1724646642263,-630.16,0.00012043,2]
[335968444,1724646642272,-714.07,0.00012043,2]
[335968446,1724646642281,-500.0,0.00012043,2]
[335968448,1724646642290,-500.0,0.00012043,2]
[335968450,1724646642300,-500.0,0.00012043,2]
[335968452,1724646642309,-500.0,0.00012043,2]
[335968454,1724646642320,-522.39,0.00012043,2]
[335968456,1724646642333,-500.0,0.00012043,2]
[335968458,1724646642344,-500.0,0.00012043,2]
[335968461,1724646642353,-500.0,0.00012043,2]
[335968463,1724646642362,-789.97,0.00012043,2]
[335968465,1724646642372,-500.0,0.00012043,2]
[335968467,1724646642382,-501.4248834,0.00012043,2]
[335968469,1724646642391,-773.7,0.00012043,2]
[335968471,1724646642401,-500.0,0.00012043,2]
[335968473,1724646642411,-598.10083407,0.00012043,2]
[335968475,1724646642420,-500.40377866,0.00012043,2]
[335968477,1724646642430,-500.0,0.00012043,2]
[335968479,1724646642440,-500.0,0.00012043,2]
[335968481,1724646642449,-1062.92,0.00012043,2]
[335968483,1724646642458,-500.44270736,0.00012043,2]
[335968485,1724646642468,-678.93,0.00012043,2]
[335968487,1724646642479,-500.0,0.00012043,2]
[335968489,1724646642489,-500.0,0.00012043,2]
[335968491,1724646642499,-501.5277892,0.00012043,2]
[335968493,1724646642509,-500.0,0.00012043,2]
[335968495,1724646642518,-558.88,0.00012043,2]
[335968497,1724646642527,-500.80567025,0.00012043,2]
[335968499,1724646642536,-500.0,0.00012043,2]
[335968501,1724646642546,-500.0,0.00012043,2]
[335968503,1724646642557,-679.36,0.00012043,2]
[335968505,1724646642567,-501.79541178,0.00012043,2]
[335968507,1724646642581,-500.0,0.00012043,2]
[335968509,1724646642590,-500.58120197,0.00012043,2]
[335968511,1724646642600,-683.58,0.00012043,2]
[335968513,1724646642610,-500.0,0.00012043,2]
[335968515,1724646642620,-500.0,0.00012043,2]
[335968518,1724646642629,-649.51,0.00012043,2]
[335968520,1724646642638,-500.0,0.00012043,2]
[335968522,1724646642650,-619.49,0.00012043,2]
[335968524,1724646642661,-500.0,0.00012043,2]
[335968526,1724646642671,-500.66762801,0.00012043,2]
[335968528,1724646642680,-500.0,0.00012043,2]
[335968529,1724646642690,-154.14502851,0.00012043,2]
[335968531,1724646642699,-500.0,0.00012043,2]
[335968533,1724646642708,-792.19,0.00012043,2]
[335968536,1724646642718,-501.19927622,0.00012043,2]
[335968538,1724646642728,-573.33,0.00012043,2]
[335968540,1724646642738,-500.0,0.00012044,2]
[335968542,1724646642748,-500.0,0.00012044,2]
[335968544,1724646642757,-500.0,0.00012044,2]
[335968546,1724646642766,-500.0,0.00012044,2]
[335968548,1724646642776,-968.41,0.00012044,2]
[335968550,1724646642785,-500.0,0.00012044,2]
[335968552,1724646642794,-500.0,0.00012044,2]
[335968554,1724646642803,-500.0,0.00012044,2]
[335968556,1724646642812,-500.0,0.00012044,2]
[335968558,1724646642822,-500.0,0.00012044,2]
[335968560,1724646642832,-915.52,0.00012044,2]
[335968562,1724646642842,-500.0,0.00012044,2]
[335968564,1724646642851,-500.0,0.00012044,2]
[335968566,1724646642861,-977.65,0.00012044,2]
[335968568,1724646642871,-1048.68,0.00012044,2]
[335968570,1724646642880,-703.16,0.00012044,2]
[335968572,1724646642890,-906.87,0.00012044,2]
[335968574,1724646642899,-632.65,0.00012044,2]
[335968576,1724646642909,-768.6,0.00012044,2]
[335968578,1724646642919,-500.0,0.00012044,2]
[335968580,1724646642928,-500.0,0.00012044,2]
[335968582,1724646642937,-500.84087238,0.00012044,2]
[335968584,1724646642947,-500.0,0.00012044,2]
[335968586,1724646642957,-843.84,0.00012044,2]
[335968588,1724646642967,-500.0,0.00012044,2]
[335968590,1724646642976,-594.64,0.00012044,2]
[335968592,1724646642986,-901.46,0.00012044,2]
[335968594,1724646642995,-718.19,0.00012044,2]
[335968596,1724646643005,-500.0,0.00012044,2]
[335968598,1724646643015,-500.0,0.00012044,2]
[335968600,1724646643025,-500.0,0.00012044,2]
[335968602,1724646643034,-500.0,0.00012044,2]
[335968604,1724646643044,-500.0,0.00012044,2]
[335968606,1724646643053,-500.0,0.00012044,2]
[335968608,1724646643062,-500.0,0.00012044,2]
[335968610,1724646643072,-706.06,0.00012044,2]
[335968613,1724646643086,-611.77,0.00012044,2]
[335968615,1724646643095,-500.0,0.00012044,2]
[335968617,1724646643105,-675.98,0.00012044,2]
[335968619,1724646643114,-500.0,0.00012044,2]
[335968621,1724646643124,-1003.11,0.00012044,2]
[335968623,1724646643133,-537.61,0.00012044,2]
[335968625,1724646643142,-914.28,0.00012044,2]
[335968627,1724646643151,-685.21,0.00012044,2]
[335968629,1724646643161,-1010.97,0.00012044,2]
[335968631,1724646643171,-500.0,0.00012044,2]
[335968634,1724646643181,-583.76,0.00012044,2]
[335968636,1724646643190,-500.0,0.00012044,2]
[335968638,1724646643199,-500.0,0.00012044,2]
[335968640,1724646643209,-568.72,0.00012044,2]
[335968642,1724646643219,-669.84,0.00012044,2]
[335968644,1724646643228,-905.44,0.00012044,2]
[335968646,1724646643237,-500.0,0.00012044,2]
[335968648,1724646643246,-500.0,0.00012053,2]
[335968651,1724646643256,-500.0,0.00012053,2]
[335968653,1724646643267,-500.0,0.00012063,2]
[335968655,1724646643276,-500.0,0.00012063,2]
[335968657,1724646643286,-500.0,0.00012063,2]
[335968659,1724646643295,-500.0,0.00012063,2]
[335968661,1724646643305,-702.73,0.00012064,2]
[335968663,1724646643314,-500.0,0.00012064,2]
[335968665,1724646643323,-500.0,0.00012064,2]
[335968667,1724646643337,-500.0,0.00012064,2]
[335968669,1724646643347,-635.74,0.00012064,2]
[335968671,1724646643356,-501.1805588,0.00012064,2]
[335968673,1724646643366,-500.0,0.00012064,2]
[335968675,1724646643375,-500.0,0.00012064,2]
[335968677,1724646643385,-500.0,0.00012064,2]
[335968679,1724646643394,-500.0,0.00012064,2]
[335968681,1724646643404,-595.95,0.00012064,2]
[335968683,1724646643414,-575.94,0.00012064,2]
[335968685,1724646643423,-500.68298531,0.00012064,2]
[335968687,1724646643433,-500.0,0.00012064,2]
[335968689,1724646643442,-500.0,0.00012064,2]
[335968691,1724646643452,-503.0854609,0.00012064,2]
[335968693,1724646643462,-950.07,0.00012064,2]
[335968695,1724646643471,-500.0,0.00012064,2]
[335968697,1724646643481,-500.0,0.00012064,2]
[335968699,1724646643492,-543.30132095,0.00012064,2]
[335968701,1724646643502,-500.0,0.00012064,2]
[335968703,1724646643511,-500.0,0.00012064,2]
[335968705,1724646643521,-500.0,0.00012064,2]
[335968707,1724646643531,-500.0,0.00012064,2]
[335968709,1724646643540,-543.28,0.00012064,2]
[335968711,1724646643549,-500.0,0.00012064,2]
[335968714,1724646643559,-500.0,0.00012064,2]
[335968716,1724646643569,-500.0,0.00012064,2]
[335968717,1724646643581,-500.0,0.00012064,2]
[335968719,1724646643590,-500.0,0.00012064,2]
[335968721,1724646643600,-551.15,0.00012064,2]
[335968724,1724646643610,-500.0,0.00012064,2]
[335968726,1724646643620,-500.0,0.00012064,2]
[335968728,1724646643629,-500.0,0.00012064,2]
[335968729,1724646643639,-500.52142647,0.00012064,2]
[335968731,1724646643648,-500.0,0.00012064,2]
[335968733,1724646643661,-500.75758708,0.00012064,2]
[335968735,1724646643670,-500.0,0.00012064,2]
[335968737,1724646643679,-673.82,0.00012064,2]
[335968739,1724646643689,-1060.33,0.00012064,2]
[335968741,1724646643699,-500.0,0.00012064,2]
[335968744,1724646643709,-500.8628679,0.00012064,2]
[335968746,1724646643719,-500.0,0.00012064,2]
[335968748,1724646643729,-500.9291722,0.00012064,2]
[335968750,1724646643738,-510.0432776,0.00012064,2]
[335968752,1724646643748,-735.6,0.00012064,2]
[335968754,1724646643758,-548.59,0.00012064,2]
[335968755,1724646643768,-543.87,0.00012064,2]
[335968757,1724646643778,-500.0,0.00012064,2]
[335968759,1724646643787,-638.59,0.00012064,2]
[335968762,1724646643798,-517.93,0.00012064,2]
[335968764,1724646643807,-695.67,0.00012064,2]
[335968766,1724646643817,-609.61,0.00012064,2]
[335968767,1724646643828,-501.40732476,0.00012064,2]
[335968769,1724646643838,-500.0,0.00012064,2]
[335968771,1724646643847,-500.0,0.00012064,2]
[335968773,1724646643858,-500.0,0.00012064,2]
[335968776,1724646643867,-500.0,0.00012064,2]
[335968778,1724646643878,-500.0,0.00012064,2]
[335968780,1724646643888,-500.0,0.00012064,2]
[335968782,1724646643898,-500.0,0.00012064,2]
[335968784,1724646643908,-500.0,0.00012073,2]
[335968786,1724646643918,-500.0,0.00012237,2]
[335968788,1724646643928,-500.0,0.00012237,2]
[335968790,1724646643937,-500.0,0.00012296,2]
[335968792,1724646643947,-500.0,0.00012296,2]
[335968794,1724646643957,-728.14,0.00012296,2]
[335968796,1724646643966,-649.84,0.00012296,2]
[335968797,1724646643975,-500.0,0.00012296,2]
[335968799,1724646643985,-501.39,0.00012306,2]
[335968801,1724646643994,-10839.27,0.00012306,2]
[335968803,1724646644004,-2903.21,0.00012306,2]
[335968806,1724646644014,-820.78,0.00012306,2]
[335968808,1724646644024,-500.0,0.00012306,2]
[335968810,1724646644033,-1274.77,0.00012306,2]
[335968812,1724646644043,-724.87,0.00012306,2]
[335968814,1724646644053,-500.0,0.00012306,2]
[335968816,1724646644062,-500.0,0.00012306,2]
[335968818,1724646644073,-6773.47,0.00012306,2]
[335968820,1724646644084,-500.0,0.00012306,2]
[335968822,1724646644095,-29148.33,0.00012306,2]
[335968824,1724646644104,-742.12,0.00012306,2]
[335968826,1724646644113,-500.0,0.00012306,2]
[335968828,1724646644123,-1677.98,0.00012306,2]
[335968830,1724646644132,-614.64,0.00012306,2]
[335968832,1724646644143,-849.11,0.00012306,2]
[335968834,1724646644152,-1308.06,0.00012306,2]
[335968836,1724646644162,-554.72,0.00012306,2]
[335968838,1724646644172,-10364.81,0.00012306,2]
[335968841,1724646644182,-565.13,0.00012306,2]
[335968843,1724646644191,-519.09,0.00012306,2]
[335968845,1724646644201,-591.14,0.00012306,2]
[335968847,1724646644210,-500.0,0.00012306,2]
[335968849,1724646644219,-502.80007792,0.00012307,2]
[335968851,1724646644229,-500.0,0.00012307,2]
[335968853,1724646644238,-500.0,0.00012307,2]
[335968855,1724646644248,-500.0,0.00012307,2]
[335968857,1724646644257,-500.0,0.00012307,2]
[335968859,1724646644266,-613.33,0.00012307,2]
[335968881,1724646644460,-753.33,0.00012307,2]
[335968883,1724646644471,-756.45,0.00012307,2]
[335968885,1724646644482,-863.58,0.00012307,2]
[335968886,1724646644491,-500.0,0.00012307,2]
[335968887,1724646644501,-1014.02,0.00012307,2]
[335968888,1724646644511,-555.4,0.00012307,2]
[335968889,1724646644521,-952.54,0.00012307,2]
[335968890,1724646644531,-500.0,0.00012307,2]
[335968891,1724646644541,-500.0,0.00012307,2]
[335968892,1724646644552,-500.0,0.00012307,2]
[335968893,1724646644563,-500.0,0.00012307,2]
[335968894,1724646644573,-903.29,0.00012307,2]
[335968895,1724646644584,-510.52,0.00012307,2]
[335968896,1724646644594,-500.0,0.00012307,2]
[335968898,1724646644604,-2605.35,0.00012307,2]
[335968900,1724646644614,-500.0,0.00012307,2]
[335968902,1724646644624,-500.0,0.00012307,2]
[335968904,1724646644634,-532.21,0.00012307,2]
[335968906,1724646644643,-704.29,0.00012307,2]
[335968908,1724646644657,-850.64,0.00012307,2]
[335968910,1724646644667,-692.69,0.00012307,2]
[335968912,1724646644677,-619.34,0.00012307,2]
[335968914,1724646644687,-579.27,0.00012307,2]
[335968916,1724646644697,-3614.07,0.00012307,2]
[335968918,1724646644707,-1032.38,0.00012307,2]
[335968920,1724646644717,-500.0,0.00012307,2]
[335968923,1724646644731,-814.25,0.00012307,2]
[335968925,1724646644740,-1440.29,0.00012307,2]
[335968927,1724646644752,-2777.48,0.00012307,2]
[335968929,1724646644763,-500.0,0.00012307,2]
[335968931,1724646644773,-665.36,0.00012307,2]
[335968933,1724646644782,-577.8,0.00012307,2]
[335968935,1724646644792,-500.0,0.00012307,2]
[335968937,1724646644802,-613.98,0.00012307,2]
[335968939,1724646644812,-500.0,0.00012307,2]
[335968942,1724646644823,-692.57,0.00012307,2]
[335968944,1724646644835,-500.0,0.00012307,2]
[335968946,1724646644846,-500.0,0.00012307,2]
[335968948,1724646644856,-1045.19,0.00012307,2]
[335968950,1724646644867,-526.34,0.00012307,2]
[335968952,1724646644877,-539.55,0.00012307,2]
[335968954,1724646644887,-906.11,0.00012307,2]
[335968956,1724646644897,-725.42,0.00012307,2]
[335968958,1724646644907,-571.29,0.00012307,2]
[335968960,1724646644916,-500.0,0.00012307,2]
[335968962,1724646644926,-500.0,0.00012307,2]
[335968965,1724646644936,-1235.55,0.00012307,2]
[335968967,1724646644946,-500.0,0.00012307,2]
[335968969,1724646644956,-500.0,0.00012307,2]
[335968971,1724646644965,-2159.71,0.00012307,2]
[335968973,1724646644975,-500.0,0.00012307,2]
[335968975,1724646644985,-1391.78,0.00012307,2]
[335968977,1724646644994,-5275.14,0.00012307,2]
[335968979,1724646645004,-500.0,0.00012307,2]
[335968981,1724646645013,-500.0,0.00012307,2]
[335968983,1724646645023,-500.0,0.00012307,2]
[335968985,1724646645032,-500.0,0.00012307,2]
[335968987,1724646645042,-532.36,0.00012307,2]
[335968989,1724646645051,-824.22,0.00012307,2]
[335968991,1724646645060,-13937.9147347,0.00012317,5]
[335968992,1724646645069,-500.0,0.00012317,2]
[335968994,1724646645079,-500.0,0.00012317,2]
[335968996,1724646645088,-509.36192606,0.00012317,2]
[335968998,1724646645098,-500.0,0.00012317,2]
[335969000,1724646645107,-500.0,0.00012317,2]
[335969002,1724646645116,-500.0,0.00012317,2]
[335969004,1724646645126,-530.87,0.00012317,2]
[335969006,1724646645135,-500.0,0.00012317,2]
[335969008,1724646645144,-500.0,0.00012317,2]
[335969010,1724646645153,-517.69,0.00012317,2]
[335969012,1724646645163,-500.0,0.00012317,2]
[335969014,1724646645171,-500.0,0.00012317,2]
[335969016,1724646645181,-500.71222381,0.00012317,2]
[335969019,1724646645190,-500.0,0.00012317,2]
[335969021,1724646645200,-500.0,0.00012317,2]
[335969023,1724646645209,-500.0,0.00012317,2]
[335969025,1724646645218,-500.0,0.00012317,2]
[335969027,1724646645228,-500.0,0.00012317,2]
[335969029,1724646645237,-500.0,0.00012317,2]
[335969030,1724646645246,-500.0,0.00012317,2]
[335969032,1724646645255,-500.0,0.00012317,2]
[335969034,1724646645265,-500.0,0.00012317,2]
[335969036,1724646645274,-500.0,0.00012317,2]
[335969039,1724646645284,-532.77848873,0.00012317,2]
[335969041,1724646645293,-518.91,0.00012317,2]
[335969043,1724646645302,-500.0,0.00012317,2]
[335969045,1724646645312,-500.0,0.00012317,2]
[335969047,1724646645321,-500.0,0.00012317,2]
[335969049,1724646645331,-500.0,0.00012317,2]
[335969051,1724646645341,-500.0,0.00012317,2]
[335969053,1724646645350,-500.0,0.00012317,2]
[335969055,1724646645359,-358.58189356,0.00012317,2]
[335969057,1724646645369,-502.6,0.00012317,2]
[335969059,1724646645378,-530.44,0.00012317,2]
[335969061,1724646645387,-500.0,0.00012317,2]
[335969063,1724646645396,-500.0,0.00012317,2]
[335969065,1724646645406,-500.0,0.00012317,2]
[335969066,1724646645416,-500.0,0.00012317,2]
[335969068,1724646645425,-768.31,0.00012317,2]
[335969070,1724646645435,-500.0,0.00012317,2]
[335969072,1724646645444,-500.0,0.00012317,2]
[335969074,1724646645454,-500.0,0.00012317,2]
[335969076,1724646645463,-443.21453025,0.00012317,2]
[335969078,1724646645472,-500.0,0.00012317,2]
[335969081,1724646645482,-183.94969575,0.00012317,2]
[335969082,1724646645491,-500.0,0.00012317,2]
[335969085,1724646645500,-500.0,0.00012317,2]
[335969087,1724646645509,-500.0,0.00012317,2]
[335969089,1724646645519,-500.0,0.00012317,2]
[335969091,1724646645529,-500.0,0.00012317,2]
[335969093,1724646645539,-500.0,0.00012317,2]
[335969095,1724646645548,-500.0,0.00012317,2]
[335969097,1724646645558,-500.0,0.00012317,2]
[335969099,1724646645567,-827.04,0.00012317,2]
[335969101,1724646645578,-500.0,0.00012317,2]
[335969103,1724646645587,-500.0,0.00012317,2]
[335969105,1724646645597,-500.0,0.00012317,2]
[335969107,1724646645606,-500.0,0.00012317,2]
[335969109,1724646645615,-500.0,0.00012317,2]
[335969111,1724646645625,-500.0,0.00012317,2]
[335969113,1724646645634,-589.24,0.00012317,2]
[335969115,1724646645644,-500.0,0.00012317,2]
[335969117,1724646645657,-500.0,0.00012317,2]
[335969119,1724646645667,-500.0,0.00012317,2]
[335969121,1724646645676,-500.0,0.00012317,2]
[335969123,1724646645685,-1072.58,0.00012317,2]
[335969125,1724646645695,-500.0,0.00012317,2]
[335969127,1724646645704,-500.0,0.00012317,2]
[335969129,1724646645714,-500.0,0.00012317,2]
[335969131,1724646645723,-500.0,0.00012317,2]
[335969133,1724646645734,-500.0,0.00012317,2]
[335969136,1724646645746,-500.0,0.00012317,2]
[335969138,1724646645757,-545.7698046,0.00012317,2]
[335969140,1724646645768,-877.51,0.00012317,2]
[335969142,1724646645780,-500.0,0.00012317,2]
[335969144,1724646645790,-920.91,0.00012317,2]
[335969146,1724646645799,-500.0,0.00012317,2]
[335969148,1724646645808,-946.47,0.00012317,2]
[335969150,1724646645818,-500.0,0.00012317,2]
[335969152,1724646645829,-500.0,0.00012317,2]
[335969154,1724646645838,-500.0,0.00012317,2]
[335969155,1724646645848,-500.0,0.00012317,2]
[335969157,1724646645860,-1091.77,0.00012317,2]
[335969159,1724646645869,-653.56,0.00012317,2]
[335969161,1724646645879,-500.0,0.00012317,2]
[335969163,1724646645888,-500.0,0.00012317,2]
[335969164,1724646645898,-697.05,0.00012317,2]
[335969166,1724646645907,-572.21,0.00012317,2]
[335969168,1724646645916,-551.82664872,0.00012317,2]
[335969170,1724646645925,-576.11,0.00012317,2]
[335969171,1724646645934,-500.0,0.00012317,2]
[335969173,1724646645944,-500.0,0.00012317,2]
[335969175,1724646645955,-905.79,0.00012317,2]
[335969177,1724646645965,-500.0,0.00012317,2]
[335969179,1724646645974,-500.0,0.00012317,2]
[335969181,1724646645983,-500.0,0.00012317,2]
[335969182,1724646645993,-500.0,0.00012317,2]
[335969184,1724646646002,-567.32,0.00012317,2]
[335969186,1724646646012,-500.0,0.00012317,2]
[335969188,1724646646023,-1003.83,0.00012317,2]
[335969190,1724646646035,-500.0,0.00012317,2]
[335969192,1724646646045,-500.0,0.00012317,2]
[335969193,1724646646054,-500.0,0.00012317,2]
[335969195,1724646646063,-515.68,0.00012317,2]
[335969197,1724646646072,-500.0,0.00012317,2]
[335969199,1724646646082,-606.23,0.00012317,2]
[335969200,1724646646091,-563.67,0.00012317,2]
[335969202,1724646646100,-500.0,0.00012317,2]
[335969204,1724646646109,-500.0,0.00012317,2]
[335969206,1724646646119,-500.0,0.00012317,2]
[335969208,1724646646131,-500.0,0.00012317,2]
[335969210,1724646646142,-791.47,0.00012317,2]
[335969212,1724646646152,-500.0,0.00012317,2]
[335969214,1724646646161,-500.0,0.00012317,2]
[335969215,1724646646170,-575.2,0.00012317,2]
[335969217,1724646646179,-500.0,0.00012317,2]
[335969219,1724646646189,-156.26293579,0.00012317,2]
[335969220,1724646646198,-500.0,0.00012317,2]
[335969222,1724646646207,-500.0,0.00012317,2]
[335969224,1724646646216,-500.0,0.00012317,2]
[335969226,1724646646225,-414.61317114,0.00012317,2]
[335969228,1724646646235,-500.0,0.00012317,2]
[335969230,1724646646244,-500.0,0.00012317,2]
[335969231,1724646646253,-500.0,0.00012317,2]
[335969233,1724646646262,-532.66,0.00012317,2]
[335969235,1724646646272,-500.0,0.00012317,2]
[335969237,1724646646281,-506.70842633,0.00012317,2]
[335969238,1724646646290,-500.0,0.00012317,2]
[335969240,1724646646299,-500.0,0.00012317,2]
[335969242,1724646646308,-500.0,0.00012317,2]
[335969244,1724646646318,-500.0,0.00012317,2]
[335969246,1724646646327,-500.0,0.00012317,2]
[335969248,1724646646338,-622.68746044,0.00012317,2]
[335969250,1724646646349,-524.51,0.00012317,2]
[335969251,1724646646359,-500.0,0.00012317,2]
[335969253,1724646646369,-500.0,0.00012317,2]
[335969255,1724646646378,-500.0,0.00012317,2]
[335969257,1724646646387,-708.48,0.00012317,2]
[335969259,1724646646397,-500.0,0.00012317,2]
[335969261,1724646646406,-500.0,0.00012317,2]
[335969263,1724646646415,-500.0,0.00012317,2]
[335969264,1724646646425,-500.0,0.00012317,2]
[335969266,1724646646434,-628.31,0.00012317,2]
[335969268,1724646646443,-500.0,0.00012317,2]
[335969270,1724646646453,-9273.69,0.00012317,2]
[335969272,1724646646462,-500.0,0.00012317,2]
[335969274,1724646646472,-500.0,0.00012317,2]
[335969276,1724646646482,-500.0,0.00012317,2]
[335969278,1724646646492,-500.0,0.00012317,2]
[335969279,1724646646502,-993.0,0.00012317,2]
[335969281,1724646646514,-553.63673576,0.00012317,2]
[335969283,1724646646525,-659.96,0.00012317,2]
[335969285,1724646646536,-578.47664796,0.00012317,2]
[335969287,1724646646546,-500.0,0.00012317,2]
[335969289,1724646646558,-500.0,0.00012317,2]
[335969291,1724646646570,-500.0,0.00012317,2]
[335969293,1724646646579,-633.96,0.00012317,2]